bitfinex/quotes_SOLUSD_20250811
["timestamp","ask_amount","ask_price","bid_price","bid_amount"]
[1754940892062,6.3198089,178.26,178.25,39.46]
[1754940893169,0.71,178.26,178.25,39.46]
[1754940893467,0.03,178.26,178.25,39.46]
[1754940893971,0.03,178.26,178.25,149.8886335]
[1754940894157,0.03,178.26,178.25,149.1986335]
[1754940894370,0.71,178.26,178.25,128.05]
[1754940896154,12.36220139,178.26,178.25,128.03]
[1754940896951,6.31978346,178.26,178.25,128.03]
[1754940897560,12.36220139,178.26,178.25,128.03]
[1754940899270,12.36220139,178.26,178.25,88.59]
[1754940899456,12.36220139,178.26,178.25,128.01]
[1754940901567,11.68220139,178.26,178.25,128.01]
[1754940901993,5.63978346,178.26,178.25,128.01]
[1754940902195,11.68220139,178.26,178.25,128.01]
[1754940902483,5.63978346,178.26,178.25,128.01]
[1754940902659,0.03,178.26,178.25,128.7]
[1754940903666,0.03,178.26,178.25,149.8486335]
[1754940906969,0.03,178.26,178.25,155.45873167]
[1754940907169,0.03,178.26,178.25,149.8486335]
[1754940910585,0.03,178.26,178.25,143.80621557]
[1754940910792,0.03,178.26,178.25,149.8486335]
[1754940911398,0.03,178.26,178.25,88.59]
[1754940911399,6.75241793,178.26,178.25,88.59]
[1754940911600,6.75241793,178.26,178.25,127.99]
[1754940911982,0.03,178.26,178.25,127.99]
[1754940912289,6.75241793,178.26,178.25,127.99]
[1754940912470,6.07241793,178.26,178.25,127.99]
[1754940912793,0.03,178.26,178.25,127.99]
[1754940915566,0.03,178.26,178.25,128.68]
[1754940916375,0.03,178.26,178.25,127.99]
[1754940918482,5.63978346,178.26,178.25,127.99]
[1754940918669,12.40220139,178.26,178.25,88.59]
[1754940919080,12.90220139,178.26,178.25,128.01]
[1754940919292,12.90220139,178.26,178.25,88.59]
[1754940919475,12.90220139,178.26,178.25,127.99]
[1754940922369,6.13978346,178.26,178.25,127.99]
[1754940922974,6.13978346,178.26,178.25,128.66]
[1754940923407,12.18220139,178.26,178.25,128.66]
[1754940923575,0.53,178.26,178.25,128.66]
[1754940923979,0.03,178.26,178.25,128.66]
[1754940924869,0.03,178.26,178.25,55.17621557]
[1754940927921,0.03,178.26,178.25,61.2186335]
[1754940928491,0.03,178.26,178.25,67.38974148]
[1754940928806,0.03,178.26,178.25,301.87974148]
[1754940929005,0.03,178.26,178.25,301.31873167]
[1754940933928,0.03,178.26,178.25,303.56510267]
[1754940936627,0.03,178.26,178.25,69.07510267]
[1754940937740,0.03,178.26,178.25,95.07510267]
[1754940937913,0.03,178.28,178.27,15.10621557]
[1754940938234,0.03,178.28,178.27,60.5686335]
[1754940938403,0.03,178.28,178.27,61.2386335]
[1754940938912,0.03,178.28,178.27,66.84810228]
[1754940939243,0.03,178.28,178.27,69.09409528]
[1754940942734,0.03,178.3,178.29,41.10621557]
[1754940942963,0.03,178.3,178.29,93.17193538]
[1754940943115,0.03,178.3,178.29,93.84193538]
[1754940943830,0.03,178.32,178.29,93.84193538]
[1754940943831,0.03,178.32,178.3,15.10621557]
[1754940944031,0.03,178.32,178.31,60.5486335]
[1754940944229,0.03,178.32,178.31,66.82684392]
[1754940944813,0.03,178.32,178.31,67.38766496]
[1754940945045,0.03,178.32,178.31,69.63290096]
[1754940948621,0.03,178.32,178.31,17.35145157]
[1754940948820,0.03,178.32,178.31,60.80442599]
[1754940949148,0.74,178.32,178.3,6.042418]
[1754940949443,0.03,178.32,178.31,54.54621557]
[1754940950040,0.74,178.32,178.31,54.54621557]
[1754940950434,0.03,178.32,178.31,54.54621557]
[1754940951055,0.74,178.32,178.31,54.54621557]
[1754940951257,1.24,178.32,178.31,54.54621557]
[1754940953273,0.03,178.32,178.31,60.5886335]
[1754940953643,0.03,178.32,178.31,66.19684392]
[1754940953947,0.03,178.32,178.31,66.90684392]
[1754940955082,0.74,178.32,178.31,15.10621557]
[1754940955286,6.78241793,178.32,178.31,54.60621557]
[1754940955759,12.39031384,178.32,178.31,54.60621557]
[1754940956353,7.28241793,178.32,178.31,54.60621557]
[1754940956649,12.39031384,178.32,178.31,54.60621557]
[1754940957070,0.03,178.32,178.31,54.60621557]
[1754940957584,12.39031384,178.32,178.31,54.60621557]
[1754940958191,12.39031384,178.32,178.31,39.5]
[1754940959084,12.39031384,178.32,178.25,15.10621557]
[1754940959284,0.71,178.31,178.27,15.10621557]
[1754940959464,6.75241793,178.3,178.28,39.5]
[1754940959667,6.75241793,178.3,178.25,21.8586335]
[1754940959872,6.75241793,178.3,178.27,15.10621557]
[1754940960167,12.36099224,178.3,178.28,39.5]
[1754940960478,6.31857431,178.3,178.28,39.5]
[1754940960863,32.07241793,178.32,178.29,39.48]
[1754940961163,0.71,178.31,178.29,39.48]
[1754940961367,0.5,178.3,178.29,39.48]
[1754940963564,6.54241793,178.3,178.29,39.48]
[1754940963884,0.5,178.3,178.29,39.48]
[1754940964266,6.81852495,178.3,178.29,39.48]
[1754940964571,12.86094288,178.3,178.29,39.48]
[1754940964767,12.86094288,178.3,178.27,0.06]
[1754940964972,12.86094288,178.3,178.28,39.48]
[1754940965485,6.75241793,178.29,178.27,0.06]
[1754940965659,6.75241793,178.29,178.28,39.48]
[1754940965863,12.36125746,178.29,178.28,39.48]
[1754940966082,6.31883953,178.29,178.28,39.48]
[1754940966385,5.60883953,178.29,178.28,39.48]
[1754940967183,12.15102803,178.3,178.28,39.48]
[1754940967375,0.71,178.29,178.28,39.48]
[1754940967680,6.75241793,178.29,178.28,39.48]
[1754940968193,11.65125746,178.29,178.28,39.48]
[1754940968375,5.60883953,178.29,178.28,39.48]
[1754940968571,12.15104994,178.3,178.28,39.48]
[1754940969474,0.5,178.3,178.28,40.19]
[1754940969677,0.5,178.3,178.28,39.48]
[1754940969877,0.5,178.3,178.29,0.71]
[1754940970673,0.5,178.3,178.29,15.81621557]
[1754940971878,0.5,178.3,178.29,15.10621557]
[1754940972702,0.5,178.3,178.29,21.8586335]
[1754940972913,0.5,178.3,178.29,15.81621557]
[1754940974263,0.5,178.3,178.29,21.8586335]
[1754940974587,0.5,178.3,178.29,15.81621557]
[1754940974786,0.5,178.3,178.29,15.10621557]
[1754940976074,0.5,178.3,178.29,21.8586335]
[1754940977771,0.5,178.3,178.29,15.10621557]
[1754940978400,0.5,178.3,178.29,15.77621557]
[1754940978701,0.5,178.3,178.29,15.10621557]
[1754940979185,0.5,178.3,178.28,39.48]
[1754940979379,0.5,178.3,178.29,21.8186335]
[1754940980372,0.5,178.3,178.29,15.77621557]
[1754940980573,0.5,178.3,178.29,21.8186335]
[1754940981792,0.5,178.3,178.29,15.10621557]
[1754940982174,0.5,178.3,178.29,21.8186335]
[1754940982918,0.5,178.3,178.29,21.1486335]
[1754940983198,0.5,178.3,178.29,15.10621557]
[1754940983775,0.5,178.3,178.29,15.77621557]
[1754940984006,0.5,178.3,178.29,15.10621557]
[1754940984700,0.5,178.3,178.29,15.77621557]
[1754940985113,0.5,178.3,178.29,21.8186335]
[1754940985482,0.5,178.3,178.29,21.8786335]
[1754940985689,0.53,178.3,178.29,21.8786335]
[1754940986503,0.53,178.3,178.29,15.16621557]
[1754940987321,0.53,178.3,178.29,21.8786335]
[1754940987818,0.03,178.3,178.29,27.48747303]
[1754940988329,0.03,178.3,178.29,29.73321303]
[1754940992926,0.03,178.3,178.29,66.98747303]
[1754940993226,0.03,178.3,178.29,54.66621557]
[1754940993610,0.03,178.3,178.29,66.98747303]
[1754940996112,0.03,178.3,178.29,69.23308703]
[1754940997817,0.1,178.34,178.33,104.94621557]
[1754940998124,0.1,178.34,178.33,150.4686335]
[1754940998549,0.78,178.34,178.33,144.42621557]
[1754940999209,0.78,178.34,178.33,104.94621557]
[1754940999414,0.78,178.34,178.33,144.40621557]
[1754940999803,0.78,178.34,178.33,129.3]
[1754941000023,12.42968494,178.34,178.33,89.84]
[1754941000331,12.42968494,178.34,178.33,129.32]
[1754941000831,26.0,178.31,178.29,0.06]
[1754941001021,6.04241793,178.3,178.29,0.06]
[1754941001223,6.04241793,178.3,178.29,39.54]
[1754941001418,6.72241793,178.3,178.29,39.54]
[1754941001834,5.60789591,178.32,178.29,54.64621557]
[1754941002011,6.72241793,178.33,178.29,55.31621557]
[1754941002350,6.72241793,178.33,178.29,61.3586335]
[1754941002844,6.04241793,178.31,178.29,54.64621557]
[1754941003152,6.72241793,178.3,178.29,39.54]
[1754941003946,6.04241793,178.3,178.29,39.54]
[1754941004134,11.65094288,178.3,178.29,39.54]
[1754941004544,11.65069907,178.31,178.29,39.54]
[1754941004726,6.04241793,178.31,178.29,39.54]
[1754941005127,6.72241793,178.3,178.29,39.54]
[1754941005947,12.33094288,178.3,178.29,39.54]
[1754941006149,12.33094288,178.3,178.29,39.52]
[1754941006529,12.33094288,178.3,178.29,0.06]
[1754941006849,26.0,178.28,178.27,0.06]
[1754941007039,26.0,178.27,178.25,0.06]
[1754941007227,6.04241793,178.26,178.25,0.06]
[1754941007420,6.74241793,178.26,178.25,0.06]
[1754941008446,12.35220139,178.26,178.24,1e-08]
[1754941008762,0.7,178.25,178.24,1e-08]
[1754941008924,26.7,178.25,178.24,1e-08]
[1754941009124,32.74241793,178.25,178.24,1e-08]
[1754941009527,26.7,178.25,178.24,1e-08]
[1754941009824,26.0,178.25,178.24,1e-08]
[1754941010132,32.74241793,178.25,178.24,1e-08]
[1754941010542,38.3525161,178.25,178.24,1e-08]
[1754941013549,31.61009817,178.25,178.24,89.84000001]
[1754941013727,37.6525161,178.25,178.24,89.84000001]
[1754941014632,38.3525161,178.25,178.24,89.84000001]
[1754941016445,38.3525161,178.25,178.24,61.14198906]
[1754941017850,37.6525161,178.25,178.24,61.14198906]
[1754941018052,31.61009817,178.25,178.24,61.14198906]
[1754941018352,37.6525161,178.25,178.24,61.14198906]
[1754941018525,37.6525161,178.25,178.23,0.06]
[1754941018730,37.6525161,178.25,178.23,0.71]
[1754941019950,31.61009817,178.25,178.23,0.06]
[1754941020148,6.74241793,178.24,178.23,0.06]
[1754941020533,6.74241793,178.24,178.23,1e-08]
[1754941020858,6.74241793,178.24,178.22,61.20198906]
[1754941021064,32.74241793,178.23,178.2,0.06]
[1754941021244,32.04241793,178.21,178.2,0.06]
[1754941023354,37.65377531,178.21,178.2,0.06]
[1754941023857,38.35377531,178.21,178.2,0.06]
[1754941024056,44.39619324,178.21,178.19,0.06]
[1754941024236,12.08483586,178.2,178.19,0.06]
[1754941024437,12.78483586,178.2,178.19,0.06]
[1754941025362,18.39650813,178.2,178.19,0.06]
[1754941025743,57.91650813,178.2,178.18,0.06]
[1754941025943,57.91650813,178.2,178.16,0.06]
[1754941025944,26.0,178.17,178.16,0.06]
[1754941026258,32.04241793,178.17,178.16,0.06]
[1754941026637,32.04241793,178.17,178.16,0.71]
[1754941026838,32.04241793,178.17,178.16,0.06]
[1754941027060,32.04241793,178.17,178.16,0.71]
[1754941027261,32.04241793,178.17,178.15,0.06]
[1754941027463,11.65535012,178.16,178.15,0.06]
[1754941027677,5.61293219,178.16,178.15,0.71]
[1754941027969,11.65535012,178.16,178.15,0.71]
[1754941028341,12.35535012,178.16,178.15,0.06]
[1754941028846,5.61293219,178.16,178.15,0.06]
[1754941029048,12.15535012,178.16,178.15,0.06]
[1754941029452,12.85535012,178.16,178.15,0.06]
[1754941029650,12.15535012,178.16,178.15,0.06]
[1754941031959,12.15535012,178.16,178.15,0.71]
[1754941032855,12.15535012,178.16,178.15,0.06]
[1754941033267,12.85535012,178.16,178.15,0.06]
[1754941034166,12.85535012,178.16,178.14,0.06]
[1754941034471,37.65566519,178.15,178.14,0.06]
[1754941034652,31.61324726,178.15,178.14,0.06]
[1754941034857,37.65566519,178.15,178.14,0.06]
[1754941035261,31.61324726,178.15,178.14,0.06]
[1754941035471,37.65566519,178.15,178.14,0.71]
[1754941035675,37.65566519,178.15,178.14,0.06]
[1754941036379,31.61324726,178.15,178.14,0.06]
[1754941036571,37.65566519,178.15,178.14,0.06]
[1754941036773,31.61324726,178.15,178.14,0.71]
[1754941037072,26.0,178.15,178.14,0.71]
[1754941037272,32.04241793,178.15,178.14,0.71]
[1754941037650,32.04241793,178.15,178.14,0.06]
[1754941037651,38.33566519,178.15,178.14,0.06]
[1754941037846,31.61324726,178.15,178.14,0.06]
[1754941038080,37.65566519,178.15,178.14,0.06]
[1754941038892,12.33566519,178.15,178.14,0.06]
[1754941040090,12.33566519,178.15,178.13,0.06]
[1754941040291,6.04241793,178.14,178.13,0.06]
[1754941040498,32.04241793,178.14,178.13,0.76]
[1754941040669,37.65598029,178.14,178.13,0.06]
[1754941041292,37.65598029,178.14,178.13,0.76]
[1754941041601,37.65598029,178.14,178.11,0.9]
[1754941041797,6.04241793,178.12,178.11,0.9]
[1754941042102,32.04241793,178.12,178.11,0.2]
[1754941042307,5.61356236,178.14,178.11,0.2]
[1754941042308,2.248897,178.17,178.11,0.9]
[1754941042469,2.248897,178.17,178.14,6.04241793]
[1754941042671,2.248897,178.17,178.16,6.04241793]
[1754941043008,34.40295862,178.21,178.16,0.7]
[1754941043313,6.04241793,178.2,178.16,15.80621557]
[1754941043474,6.04241793,178.2,178.17,0.7]
[1754941043800,6.04241793,178.18,178.16,0.7]
[1754941044489,26.0,178.18,178.17,0.7]
[1754941044685,8.40295862,178.21,178.17,0.7]
[1754941044878,8.40295862,178.21,178.17,6.74241793]
[1754941045075,8.40295862,178.21,178.18,6.74241793]
[1754941045303,8.40295862,178.21,178.19,6.74241793]
[1754941045511,8.40295862,178.21,178.2,6.74241793]
[1754941045681,8.40295862,178.21,178.2,21.8486335]
[1754941046069,0.03,178.23,178.21,15.10621557]
[1754941046389,0.03,178.23,178.22,21.1486335]
[1754941046717,0.03,178.23,178.22,21.8486335]
[1754941048015,0.03,178.23,178.22,15.80621557]
[1754941048517,0.03,178.23,178.22,21.8486335]
[1754941049924,0.03,178.23,178.22,27.45967603]
[1754941050918,0.03,178.23,178.22,15.80621557]
[1754941051380,0.03,178.23,178.21,6.04241793]
[1754941051579,0.03,178.23,178.21,6.74241793]
[1754941051804,0.03,178.23,178.2,15.10621557]
[1754941052105,6.07241793,178.23,178.19,39.74]
[1754941052305,6.07241793,178.23,178.2,0.7]
[1754941052508,6.04241793,178.21,178.19,39.74]
[1754941052801,6.04241793,178.2,178.19,39.74]
[1754941053503,6.04241793,178.21,178.19,39.74]
[1754941054002,26.03,178.23,178.2,0.7]
[1754941054215,26.03,178.23,178.21,0.7]
[1754941054810,0.03,178.23,178.22,0.7]
[1754941055106,0.03,178.23,178.22,6.74241793]
[1754941056009,0.03,178.23,178.22,0.7]
[1754941056688,0.03,178.23,178.22,6.74241793]
[1754941056883,0.03,178.23,178.22,0.7]
[1754941057283,0.03,178.23,178.22,27.45967603]
[1754941058411,0.03,178.23,178.22,21.8486335]
[1754941058580,0.03,178.23,178.22,27.45967603]
[1754941058784,0.03,178.23,178.22,21.8486335]
[1754941059494,0.03,178.23,178.22,15.10621557]
[1754941059708,0.03,178.23,178.22,55.52621557]
[1754941060020,0.03,178.23,178.22,54.82621557]
[1754941060313,0.03,178.23,178.22,61.5686335]
[1754941060518,0.03,178.23,178.22,40.42]
[1754941060688,0.03,178.23,178.22,39.72]
[1754941061888,0.03,178.23,178.22,45.76241793]
[1754941062093,0.03,178.23,178.22,39.72]
[1754941062818,0.03,178.23,178.22,40.42]
[1754941063022,0.03,178.23,178.22,130.32]
[1754941064603,0.03,178.23,178.22,129.62]
[1754941064999,0.03,178.23,178.22,136.36241793]
[1754941065513,0.03,178.23,178.22,151.4686335]
[1754941065695,0.03,178.23,178.22,157.07967603]
[1754941067318,0.03,178.23,178.22,145.42621557]
[1754941067528,0.03,178.23,178.22,151.4286335]
[1754941068900,5.63946878,178.27,178.24,89.84]
[1754941069102,5.63946878,178.27,178.25,39.68]
[1754941069328,6.33946878,178.27,178.25,39.68]
[1754941070604,0.03,178.27,178.25,45.72241793]
[1754941070829,0.03,178.27,178.26,0.66]
[1754941071001,0.03,178.27,178.26,6.70241793]
[1754941071698,0.03,178.27,178.26,21.8086335]
[1754941072828,0.03,178.27,178.26,15.76621557]
[1754941073026,0.03,178.27,178.25,39.68]
[1754941073336,0.73,178.27,178.25,39.68]
[1754941074041,0.03,178.27,178.25,39.68]
[1754941074555,5.61009817,178.25,178.2,6.04241793]
[1754941074832,6.04241793,178.22,178.21,39.68]
[1754941075004,6.04241793,178.22,178.21,54.78621557]
[1754941075727,0.7,178.24,178.21,54.78621557]
[1754941075728,5.61072771,178.23,178.21,54.78621557]
[1754941075912,11.65314564,178.23,178.21,54.78621557]
[1754941077126,11.65314564,178.23,178.21,39.68]
[1754941077296,5.61051386,178.24,178.21,39.68]
[1754941077505,6.04241793,178.22,178.21,39.68]
[1754941077710,6.74241793,178.22,178.21,39.66]
[1754941078407,26.0,178.21,178.15,15.10621557]
[1754941078640,6.04241793,178.17,178.16,39.66]
[1754941079307,11.65503509,178.17,178.16,39.66]
[1754941079506,6.04241793,178.17,178.16,39.66]
[1754941079734,11.65503509,178.17,178.16,39.66]
[1754941080933,6.04241793,178.2,178.17,15.10621557]
[1754941081154,32.04241793,178.2,178.18,39.7]
[1754941081342,11.65440513,178.19,178.18,40.36]
[1754941081644,31.61104253,178.22,178.18,40.36]
[1754941081818,6.04241793,178.21,178.18,40.36]
[1754941082023,31.61104253,178.22,178.19,0.66]
[1754941082227,31.61104253,178.22,178.2,40.34]
[1754941082540,6.04241793,178.21,178.2,39.68]
[1754941083624,11.65377531,178.21,178.2,39.68]
[1754941083922,12.35377531,178.21,178.2,39.68]
[1754941084119,12.35377531,178.21,178.18,39.68]
[1754941084321,6.04241793,178.19,178.18,39.68]
[1754941084509,6.04241793,178.19,178.14,15.16621557]
[1754941084510,6.74241793,178.19,178.14,0.06]
[1754941084734,6.04241793,178.15,178.14,105.00621557]
[1754941084913,6.04241793,178.16,178.15,83.79758207]
[1754941085338,5.61324726,178.15,178.14,0.06]
[1754941085550,11.65566519,178.15,178.14,0.06]
[1754941086218,15.24929689,178.15,178.14,0.06]
[1754941087643,15.94929689,178.15,178.14,0.06]
[1754941088325,15.24929689,178.15,178.14,0.06]
[1754941089048,5.61324726,178.15,178.14,0.06]
[1754941089429,15.24929689,178.15,178.14,0.72]
[1754941090140,15.24908751,178.16,178.14,0.72]
[1754941090640,9.63604963,178.16,178.14,0.72]
[1754941091019,9.63604963,178.16,178.14,0.06]
[1754941091649,15.24929689,178.15,178.14,0.06]
[1754941092048,15.94929689,178.15,178.14,0.06]
[1754941092636,15.94929689,178.15,178.14,83.85758207]
[1754941093034,15.24929689,178.15,178.14,83.85758207]
[1754941093235,15.94929689,178.15,178.14,83.85758207]
[1754941093641,15.94929689,178.15,178.14,0.06]
[1754941093831,15.24929689,178.15,178.14,0.06]
[1754941094149,15.94929689,178.15,178.14,0.06]
[1754941095940,15.24929689,178.15,178.14,0.06]
[1754941098257,5.61324726,178.15,178.14,0.06]
[1754941098554,15.24929689,178.15,178.14,0.76]
[1754941099461,26.0,178.17,178.14,10.39604963]
[1754941099648,9.63604963,178.2,178.15,9.63604963]
[1754941099854,35.63604963,178.19,178.16,0.7]
[1754941100041,9.63604963,178.17,178.16,39.7]
[1754941100231,32.3321109,178.19,178.16,39.7]
[1754941100436,41.24816053,178.19,178.16,40.4]
[1754941101657,31.6121109,178.19,178.17,0.7]
[1754941102950,15.24775247,178.2,178.17,0.7]
[1754941103769,5.61170284,178.2,178.16,39.7]
[1754941103935,15.24775247,178.2,178.17,0.7]
[1754941104254,15.24775247,178.2,178.16,39.7]
[1754941104467,15.24775247,178.2,178.16,40.4]
[1754941104958,9.63604963,178.17,178.16,39.7]
[1754941105133,9.63604963,178.17,178.14,15.16621557]
[1754941105333,0.72,178.19,178.16,39.7]
[1754941106173,19.64088353,178.2,178.16,40.4]
[1754941106536,9.63604963,178.18,178.16,40.4]
[1754941106855,5.61170284,178.2,178.17,10.33604963]
[1754941107062,5.61170284,178.2,178.18,0.7]
[1754941107235,5.61170284,178.2,178.18,84.49758207]
[1754941108054,15.24775247,178.2,178.18,84.49758207]
[1754941108276,10.35604963,178.19,178.18,83.79758207]
[1754941108850,9.63604963,178.19,178.18,83.79758207]
[1754941109366,15.24803683,178.19,178.18,83.79758207]
[1754941109961,5.6119872,178.19,178.18,84.49758207]
[1754941110158,5.61178038,178.2,178.18,84.49758207]
[1754941110378,5.61178038,178.2,178.19,0.7]
[1754941110681,5.61178038,178.2,178.19,124.19758207]
[1754941110885,11.62946821,178.2,178.19,123.49758207]
[1754941112582,37.62915896,178.21,178.19,124.19758207]
[1754941112787,31.61147113,178.21,178.2,0.7]
[1754941113675,26.0,178.21,178.2,0.7]
[1754941113873,11.62881168,178.22,178.2,84.49758207]
[1754941114080,11.62881168,178.22,178.21,39.68]
[1754941115591,11.62881168,178.22,178.21,40.38]
[1754941116283,5.61112385,178.22,178.21,40.38]
[1754941117087,11.62850833,178.23,178.21,40.38]
[1754941118664,0.03,178.24,178.23,83.79758207]
[1754941118889,0.03,178.24,178.23,130.1552699]
[1754941119375,0.03,178.24,178.23,61.4639034]
[1754941120485,0.03,178.24,178.23,55.44621557]
[1754941120871,0.03,178.24,178.23,39.64]
[1754941121070,6.04768783,178.24,178.23,39.64]
[1754941121591,6.76768783,178.24,178.23,39.64]
[1754941122093,6.04768783,178.24,178.23,39.64]
[1754941122261,0.03,178.24,178.23,39.64]
[1754941122582,32.04768783,178.24,178.23,39.64]
[1754941123190,37.65810075,178.24,178.23,39.64]
[1754941123697,38.37810075,178.24,178.23,39.64]
[1754941123905,38.37810075,178.24,178.16,0.7]
[1754941124070,0.72,178.23,178.17,39.64]
[1754941124267,6.01768783,178.18,178.17,39.64]
[1754941125106,38.34998999,178.18,178.14,0.06]
[1754941125411,6.01768783,178.16,178.15,39.66]
[1754941125768,31.61230216,178.18,178.15,39.66]
[1754941125968,6.01768783,178.16,178.15,39.66]
[1754941126280,9.63574642,178.16,178.15,39.66]
[1754941126482,9.63574642,178.16,178.15,40.36]
[1754941126665,9.63574642,178.16,178.15,39.66]
[1754941127288,9.63574642,178.16,178.15,40.34]
[1754941127701,9.63574642,178.17,178.15,40.34]
[1754941127892,41.24833271,178.18,178.16,0.68]
[1754941128096,41.24833271,178.18,178.17,0.68]
[1754941128305,31.61258629,178.18,178.17,0.68]
[1754941128599,41.24804858,178.18,178.15,39.66]
[1754941128799,9.63574642,178.16,178.15,39.66]
[1754941129190,15.24867861,178.16,178.15,39.66]
[1754941129908,15.24867861,178.16,178.14,0.06]
[1754941130202,10.32574642,178.15,178.14,0.06]
[1754941130391,9.63574642,178.15,178.14,0.06]
[1754941133406,9.63574642,178.16,178.15,39.66]
[1754941133902,5.61268783,178.17,178.15,39.66]
[1754941134076,9.63574642,178.16,178.15,40.34]
[1754941134276,15.24843425,178.17,178.15,40.34]
[1754941134479,9.63574642,178.19,178.16,0.68]
[1754941134704,9.63574642,178.19,178.17,0.68]
[1754941134904,41.24741869,178.2,178.18,40.34]
[1754941135301,31.61167227,178.2,178.19,0.68]
[1754941135804,41.24741869,178.2,178.19,39.66]
[1754941135991,41.93741869,178.2,178.14,84.53758207]
[1754941136311,46.33085296,178.2,178.15,39.66]
[1754941136625,46.33085296,178.2,178.15,40.34]
[1754941136803,0.69,178.19,178.15,39.66]
[1754941137184,0.69,178.19,178.15,124.13758207]
[1754941137604,9.63574642,178.16,178.15,124.13758207]
[1754941138279,5.61255123,178.18,178.15,124.13758207]
[1754941138481,15.24829765,178.18,178.16,0.68]
[1754941138682,9.63574642,178.17,178.16,0.68]
[1754941139505,9.63574642,178.17,178.15,123.45758207]
[1754941139803,9.63574642,178.16,178.15,123.45758207]
[1754941140207,15.24867861,178.16,178.15,123.45758207]
[1754941142405,5.61293219,178.16,178.15,123.45758207]
[1754941142603,9.63574642,178.16,178.15,123.45758207]
[1754941144612,35.63574642,178.16,178.15,124.13758207]
[1754941145412,9.63574642,178.17,178.15,124.13758207]
[1754941145631,9.63574642,178.17,178.16,0.68]
[1754941146295,6.02045275,178.17,178.16,0.68]
[1754941146932,5.61230216,178.18,178.16,0.68]
[1754941147226,6.02045275,178.17,178.15,83.79758207]
[1754941147395,6.02045275,178.17,178.16,40.3]
[1754941148923,6.02045275,178.17,178.16,124.09758207]
[1754941149419,6.02045275,178.18,178.16,124.09758207]
[1754941149621,6.02045275,178.17,178.16,123.41758207]
[1754941150823,32.71045275,178.17,178.16,83.79758207]
[1754941151025,38.32306991,178.17,178.16,83.79758207]
[1754941151825,26.0,178.15,178.14,83.85758207]
[1754941152033,32.71045275,178.15,178.14,83.85758207]
[1754941152794,38.32370001,178.15,178.14,0.06]
[1754941152993,38.32370001,178.15,178.12,0.06]
[1754941153203,32.02045275,178.13,178.12,0.06]
[1754941153694,32.71045275,178.13,178.12,0.06]
[1754941154323,32.02045275,178.13,178.12,0.06]
[1754941155031,37.63433025,178.13,178.12,0.06]
[1754941156438,37.63433025,178.13,178.12,0.74]
[1754941156810,31.6138775,178.13,178.12,0.74]
[1754941157003,37.63433025,178.13,178.12,0.74]
[1754941157626,37.63433025,178.13,178.12,0.06]
[1754941158014,37.63433025,178.13,178.12,0.73]
[1754941158214,37.63433025,178.13,178.12,0.06]
[1754941158524,38.33433025,178.13,178.12,0.06]
[1754941159040,12.33433025,178.13,178.12,0.06]
[1754941159234,38.33433025,178.13,178.12,0.06]
[1754941159412,12.33433025,178.13,178.12,0.06]
[1754941160312,31.6138775,178.13,178.12,0.06]
[1754941160506,37.63433025,178.13,178.12,0.06]
[1754941160721,37.63433025,178.13,178.12,83.85758207]
[1754941162011,12.33433025,178.13,178.12,0.06]
[1754941163144,12.33433025,178.13,178.11,0.2]
[1754941163355,32.02045275,178.12,178.11,0.2]
[1754941163642,32.72045275,178.12,178.11,0.2]
[1754941164139,35.5354097,178.12,178.11,0.2]
[1754941164349,41.14960237,178.12,178.11,0.2]
[1754941166024,40.44960237,178.12,178.11,0.2]
[1754941168255,31.61419267,178.12,178.11,0.87]